[Event "*** Titled Tuesday Blitz"]
[Site "Chess.com"]
[Date "2020.02.04"]
[Round "1"]
[White "doons21"]
[Black "WelshTiger"]
[Result "1-0"]
[WhiteElo "2657"]
[BlackElo "2268"]
[TimeControl "180+2"]
[EndTime "9:02:44 PST"]
[Termination "doons21 won by resignation"]

1. e4 {[%clk 0:03:01.1]} 1... c5 {[%clk 0:03:00.7]} 2. c3 {[%clk 0:03:02]} 2...
Nf6 {[%clk 0:03:01.2]} 3. e5 {[%clk 0:03:03]} 3... Nd5 {[%clk 0:03:02.6]} 4. d4
{[%clk 0:03:04.9]} 4... cxd4 {[%clk 0:03:04]} 5. Nf3 {[%clk 0:03:06.4]} 5... Nc6
{[%clk 0:03:04.9]} 6. Bc4 {[%clk 0:03:07.8]} 6... Nb6 {[%clk 0:03:05.8]} 7. Bb3
{[%clk 0:03:09.2]} 7... d5 {[%clk 0:03:03.2]} 8. exd6 {[%clk 0:03:11.1]} 8...
Qxd6 {[%clk 0:03:03.3]} 9. O-O {[%clk 0:03:12.2]} 9... e6 {[%clk 0:02:25.5]} 10.
cxd4 {[%clk 0:03:05.1]} 10... Be7 {[%clk 0:02:26.2]} 11. Nc3 {[%clk 0:03:06.5]}
11... Nd5 {[%clk 0:02:19.8]} 12. Qe2 {[%clk 0:03:03.8]} 12... O-O {[%clk
0:02:17.3]} 13. Rd1 {[%clk 0:03:01.2]} 13... b5 {[%clk 0:02:05.9]} 14. Nxb5
{[%clk 0:02:57.1]} 14... Qd8 {[%clk 0:02:06.7]} 15. Nc3 {[%clk 0:02:57.3]} 15...
a5 {[%clk 0:02:03.4]} 16. Bc2 {[%clk 0:02:49.6]} 16... Ba6 {[%clk 0:02:00.2]}
17. Qe4 {[%clk 0:02:50.5]} 17... f5 {[%clk 0:01:59.8]} 18. Qxe6+ {[%clk
0:02:51]} 18... Kh8 {[%clk 0:02:00.8]} 19. Nxd5 {[%clk 0:02:48.7]} 1-0

[Event "*** Titled Tuesday Blitz"]
[Site "Chess.com"]
[Date "2020.02.04"]
[Round "1"]
[White "iturrizaga"]
[Black "cholzan"]
[Result "0-1"]
[WhiteElo "2871"]
[BlackElo "2501"]
[TimeControl "180+2"]
[EndTime "9:04:05 PST"]
[Termination "cholzan won on time"]

1. c4 {[%clk 0:03:01.8]} 1... Nf6 {[%clk 0:02:55.9]} 2. g3 {[%clk 0:02:58.1]}
2... d6 {[%clk 0:02:52.8]} 3. Bg2 {[%clk 0:02:58.9]} 3... e5 {[%clk 0:02:52.4]}
4. Nc3 {[%clk 0:03:00.2]} 4... c6 {[%clk 0:02:50.5]} 5. Nf3 {[%clk 0:03:00.8]}
5... Nbd7 {[%clk 0:02:51.5]} 6. d4 {[%clk 0:03:01.6]} 6... Be7 {[%clk
0:02:51.6]} 7. O-O {[%clk 0:03:02.3]} 7... O-O {[%clk 0:02:52.2]} 8. e4 {[%clk
0:03:03.8]} 8... a6 {[%clk 0:02:51.7]} 9. a4 {[%clk 0:03:04.5]} 9... a5 {[%clk
0:02:48.9]} 10. h3 {[%clk 0:03:03.9]} 10... Re8 {[%clk 0:02:48.1]} 0-1

[Event "*** Titled Tuesday Blitz"]
[Site "Chess.com"]
[Date "2020.02.04"]
[Round "1"]
[White "Bigfish1995"]
[Black "AleksanderHnydiuk"]
[Result "1-0"]
[WhiteElo "3057"]
[BlackElo "2534"]
[TimeControl "180+2"]
[EndTime "9:04:21 PST"]
[Termination "Bigfish1995 won by resignation"]

1. d4 {[%clk 0:03:01.4]} 1... Nf6 {[%clk 0:02:59.9]} 2. Bg5 {[%clk 0:03:02]}
2... d5 {[%clk 0:02:58.9]} 3. e3 {[%clk 0:03:02.8]} 3... c5 {[%clk 0:02:59]} 4.
Bxf6 {[%clk 0:03:03.3]} 4... gxf6 {[%clk 0:02:59.7]} 5. dxc5 {[%clk 0:03:04.4]}
5... e6 {[%clk 0:02:54.5]} 6. Nf3 {[%clk 0:03:01.3]} 6... Bxc5 {[%clk
0:02:54.7]} 7. Nbd2 {[%clk 0:03:01.8]} 7... Nc6 {[%clk 0:02:48.8]} 8. Be2 {[%clk
0:02:57.4]} 8... f5 {[%clk 0:02:39.4]} 9. O-O {[%clk 0:02:53.3]} 9... O-O {[%clk
0:02:40]} 10. c4 {[%clk 0:02:54.3]} 10... dxc4 {[%clk 0:02:33.1]} 11. Qa4 {[%clk
0:02:54.6]} 11... Bd7 {[%clk 0:02:20.3]} 12. Qxc4 {[%clk 0:02:54]} 12... Qe7
{[%clk 0:02:06.7]} 13. Rac1 {[%clk 0:02:42]} 13... Bd6 {[%clk 0:02:07.5]} 14. e4
{[%clk 0:02:42.4]} 14... fxe4 {[%clk 0:01:26.9]} 15. Nxe4 {[%clk 0:02:41.8]}
15... Ne5 {[%clk 0:01:27.6]} 16. Qd4 {[%clk 0:02:35.9]} 1-0

[Event "*** Titled Tuesday Blitz"]
[Site "Chess.com"]
[Date "2020.02.04"]
[Round "1"]
[White "vovachesss"]
[Black "Saloni1299"]
[Result "1-0"]
[WhiteElo "2576"]
[BlackElo "2120"]
[TimeControl "180+2"]
[EndTime "9:04:38 PST"]
[Termination "vovachesss won by resignation"]

1. e4 {[%clk 0:02:59.1]} 1... e6 {[%clk 0:03:00.2]} 2. Qe2 {[%clk 0:02:59.7]}
2... c5 {[%clk 0:02:44.7]} 3. Nf3 {[%clk 0:03:00.1]} 3... Nc6 {[%clk 0:02:45.2]}
4. g3 {[%clk 0:03:00.5]} 4... Nge7 {[%clk 0:02:45]} 5. Bg2 {[%clk 0:02:59.7]}
5... d5 {[%clk 0:02:46.4]} 6. exd5 {[%clk 0:03:01.1]} 6... Nxd5 {[%clk
0:02:41.3]} 7. O-O {[%clk 0:03:01.6]} 7... g6 {[%clk 0:02:42.4]} 8. Nc3 {[%clk
0:02:57.8]} 8... Nxc3 {[%clk 0:02:38.2]} 9. dxc3 {[%clk 0:02:58]} 9... Bg7
{[%clk 0:02:36.8]} 10. Rd1 {[%clk 0:02:59]} 10... Qe7 {[%clk 0:02:38]} 11. Bg5
{[%clk 0:02:58.7]} 11... Bf6 {[%clk 0:02:34.6]} 12. Bxf6 {[%clk 0:02:44.6]}
12... Qxf6 {[%clk 0:02:36.5]} 13. Qe3 {[%clk 0:02:46.5]} 13... Qe7 {[%clk
0:02:28.7]} 14. Ng5 {[%clk 0:02:15.7]} 14... O-O {[%clk 0:02:25.6]} 15. Ne4
{[%clk 0:02:15.9]} 15... b6 {[%clk 0:02:12.7]} 16. Rd6 {[%clk 0:01:52.3]} 16...
Bb7 {[%clk 0:02:08.8]} 17. Rd7 {[%clk 0:01:53.4]} 17... Qe8 {[%clk 0:01:15.2]}
18. Nf6+ {[%clk 0:01:40]} 1-0

[Event "*** Titled Tuesday Blitz"]
[Site "Chess.com"]
[Date "2020.02.04"]
[Round "1"]
[White "GMHellers"]
[Black "GMSrinath"]
[Result "0-1"]
[WhiteElo "2507"]
[BlackElo "2986"]
[TimeControl "180+2"]
[EndTime "9:05:13 PST"]
[Termination "GMSrinath won by resignation"]

1. e4 {[%clk 0:03:00.9]} 1... c5 {[%clk 0:02:49.1]} 2. Nf3 {[%clk 0:03:01.5]}
2... d6 {[%clk 0:02:50.7]} 3. d4 {[%clk 0:03:01.4]} 3... cxd4 {[%clk 0:02:52.6]}
4. Nxd4 {[%clk 0:03:02.4]} 4... Nf6 {[%clk 0:02:54.2]} 5. Nc3 {[%clk 0:03:03.4]}
5... Nc6 {[%clk 0:02:55.8]} 6. Bg5 {[%clk 0:03:02.9]} 6... e6 {[%clk 0:02:56.9]}
7. Qd2 {[%clk 0:03:03.7]} 7... a6 {[%clk 0:02:58.2]} 8. O-O-O {[%clk 0:03:04.3]}
8... Be7 {[%clk 0:02:59.3]} 9. f3 {[%clk 0:02:58.9]} 9... O-O {[%clk 0:02:58.6]}
10. h4 {[%clk 0:02:56.2]} 10... Nxd4 {[%clk 0:03:00]} 11. Qxd4 {[%clk
0:02:55.9]} 11... b5 {[%clk 0:03:01.6]} 12. h5 {[%clk 0:02:49.7]} 12... h6
{[%clk 0:03:01.9]} 13. Be3 {[%clk 0:02:49.4]} 13... Qa5 {[%clk 0:02:59.3]} 14.
Kb1 {[%clk 0:02:48.8]} 14... b4 {[%clk 0:02:59.4]} 15. Ne2 {[%clk 0:02:48.7]}
15... e5 {[%clk 0:03:00.9]} 16. Qd2 {[%clk 0:02:47.9]} 16... Be6 {[%clk
0:03:02.4]} 17. Nc1 {[%clk 0:02:45.7]} 17... d5 {[%clk 0:03:03.9]} 18. Nb3
{[%clk 0:02:27.4]} 18... Qc7 {[%clk 0:03:03.1]} 19. exd5 {[%clk 0:01:59.6]}
19... Nxd5 {[%clk 0:03:05]} 20. Bd3 {[%clk 0:01:59.7]} 20... a5 {[%clk
0:02:41.6]} 21. Qf2 {[%clk 0:01:47.2]} 21... Rac8 {[%clk 0:02:10.2]} 22. Be4
{[%clk 0:01:38.4]} 22... Nxe3 {[%clk 0:02:07.5]} 23. Qxe3 {[%clk 0:01:38.6]}
23... a4 {[%clk 0:02:08.9]} 24. Nc1 {[%clk 0:01:36.3]} 24... a3 {[%clk 0:01:51]}
25. b3 {[%clk 0:01:26.2]} 25... f5 {[%clk 0:01:30.7]} 26. Bd3 {[%clk 0:01:24.1]}
26... Qc3 {[%clk 0:01:27.1]} 0-1

[Event "*** Titled Tuesday Blitz"]
[Site "Chess.com"]
[Date "2020.02.04"]
[Round "1"]
[White "gena217"]
[Black "ChessPromotionAlex"]
[Result "1-0"]
[WhiteElo "3003"]
[BlackElo "2520"]
[TimeControl "180+2"]
[EndTime "9:05:21 PST"]
[Termination "gena217 won by resignation"]

1. e4 {[%clk 0:03:01]} 1... c5 {[%clk 0:03:00.4]} 2. Nf3 {[%clk 0:03:01.9]} 2...
d6 {[%clk 0:03:01.8]} 3. Bb5+ {[%clk 0:03:01.2]} 3... Bd7 {[%clk 0:03:02.6]} 4.
c4 {[%clk 0:03:01.2]} 4... Nc6 {[%clk 0:03:01]} 5. O-O {[%clk 0:02:56.1]} 5...
Nf6 {[%clk 0:03:01.7]} 6. Nc3 {[%clk 0:02:56.4]} 6... g6 {[%clk 0:03:02.2]} 7.
d4 {[%clk 0:02:58]} 7... cxd4 {[%clk 0:03:03.3]} 8. Nxd4 {[%clk 0:02:59.9]} 8...
Bg7 {[%clk 0:03:04.8]} 9. Be3 {[%clk 0:02:47.1]} 9... Ng4 {[%clk 0:02:51.1]} 10.
Nxc6 {[%clk 0:02:43.5]} 10... bxc6 {[%clk 0:02:51.3]} 11. Bxc6 {[%clk
0:02:33.2]} 11... Nxe3 {[%clk 0:02:51.8]} 12. Bxd7+ {[%clk 0:02:32]} 12... Qxd7
{[%clk 0:02:53.7]} 13. fxe3 {[%clk 0:02:32.7]} 13... Bxc3 {[%clk 0:02:45.4]} 14.
bxc3 {[%clk 0:02:34.6]} 14... O-O-O {[%clk 0:02:43.3]} 15. Rb1 {[%clk
0:02:30.9]} 15... Qc6 {[%clk 0:02:40]} 16. Rxf7 {[%clk 0:02:27.5]} 16... Qxe4
{[%clk 0:02:37.1]} 17. Qb3 {[%clk 0:02:27.7]} 17... Kd7 {[%clk 0:02:31.4]} 18.
Qb7+ {[%clk 0:02:24.7]} 18... Qxb7 {[%clk 0:02:31.6]} 19. Rxb7+ {[%clk
0:02:26.6]} 19... Kc6 {[%clk 0:02:32.1]} 20. Rfxe7 {[%clk 0:02:23.7]} 20... Rc8
{[%clk 0:02:33.4]} 21. Rxa7 {[%clk 0:02:19.3]} 21... h5 {[%clk 0:02:31.9]} 22.
Kf2 {[%clk 0:02:13.1]} 22... Rhe8 {[%clk 0:02:26.1]} 23. Rxe8 {[%clk 0:02:03.8]}
23... Rxe8 {[%clk 0:02:28]} 24. Rg7 {[%clk 0:02:05.3]} 24... Re6 {[%clk
0:02:26.4]} 25. Ke2 {[%clk 0:01:59.5]} 25... Rf6 {[%clk 0:02:21.4]} 26. h4
{[%clk 0:01:55.9]} 26... d5 {[%clk 0:02:02.3]} 27. cxd5+ {[%clk 0:01:54.4]}
27... Kxd5 {[%clk 0:02:04.2]} 28. Kd3 {[%clk 0:01:55.5]} 28... Ke5 {[%clk
0:02:02.5]} 29. a4 {[%clk 0:01:48.9]} 29... Ra6 {[%clk 0:02:02.2]} 30. Re7+
{[%clk 0:01:39.7]} 30... Kf6 {[%clk 0:02:00.6]} 31. Re4 {[%clk 0:01:41.2]} 31...
Kf5 {[%clk 0:01:58.6]} 32. Rf4+ {[%clk 0:01:40.7]} 32... Ke5 {[%clk 0:01:59.4]}
33. Rb4 {[%clk 0:01:42.1]} 33... Rd6+ {[%clk 0:01:58.5]} 34. Kc2 {[%clk
0:01:41.5]} 34... Rf6 {[%clk 0:01:58]} 35. a5 {[%clk 0:01:42.4]} 35... Ra6
{[%clk 0:01:52.1]} 36. Ra4 {[%clk 0:01:42.2]} 1-0

[Event "*** Titled Tuesday Blitz"]
[Site "Chess.com"]
[Date "2020.02.04"]
[Round "1"]
[White "BocharovD"]
[Black "eCztery"]
[Result "1-0"]
[WhiteElo "2740"]
[BlackElo "2370"]
[TimeControl "180+2"]
[EndTime "9:05:32 PST"]
[Termination "BocharovD won by resignation"]

1. c4 {[%clk 0:03:01.9]} 1... c5 {[%clk 0:02:52.1]} 2. Nf3 {[%clk 0:03:01.1]}
2... Nc6 {[%clk 0:02:52.5]} 3. Nc3 {[%clk 0:03:01.8]} 3... g6 {[%clk 0:02:52.4]}
4. e3 {[%clk 0:03:00]} 4... Bg7 {[%clk 0:02:52.1]} 5. d4 {[%clk 0:03:00.7]} 5...
cxd4 {[%clk 0:02:54]} 6. exd4 {[%clk 0:03:01.8]} 6... d6 {[%clk 0:02:51.7]} 7.
Be2 {[%clk 0:03:00.2]} 7... Nf6 {[%clk 0:02:52.4]} 8. d5 {[%clk 0:03:00.2]} 8...
Nb8 {[%clk 0:02:53.3]} 9. O-O {[%clk 0:03:00.9]} 9... O-O {[%clk 0:02:54.7]} 10.
Be3 {[%clk 0:03:01.7]} 10... Bg4 {[%clk 0:02:51.3]} 11. Nd4 {[%clk 0:02:57.9]}
11... Bxe2 {[%clk 0:02:51.1]} 12. Qxe2 {[%clk 0:02:59.8]} 12... Nbd7 {[%clk
0:02:48.7]} 13. Rac1 {[%clk 0:02:59.8]} 13... Rc8 {[%clk 0:02:48.2]} 14. b3
{[%clk 0:03:00.3]} 14... a6 {[%clk 0:02:40.5]} 15. Rfd1 {[%clk 0:02:58.1]} 15...
Qa5 {[%clk 0:02:39.2]} 16. h3 {[%clk 0:02:54.7]} 16... Nc5 {[%clk 0:02:27.5]}
17. Qb2 {[%clk 0:02:50.6]} 17... Qd8 {[%clk 0:02:22.2]} 18. b4 {[%clk 0:02:48]}
18... Nce4 {[%clk 0:02:19]} 19. Nxe4 {[%clk 0:02:43.8]} 19... Nxe4 {[%clk
0:02:20.9]} 20. Qb3 {[%clk 0:02:44.6]} 20... Qd7 {[%clk 0:02:16.1]} 21. a4
{[%clk 0:02:42.8]} 21... a5 {[%clk 0:02:16]} 22. bxa5 {[%clk 0:02:37.9]} 22...
Nc5 {[%clk 0:02:16.4]} 23. Qb5 {[%clk 0:02:38.9]} 23... Qxb5 {[%clk 0:01:52.9]}
24. axb5 {[%clk 0:02:30.1]} 24... Bxd4 {[%clk 0:01:53.5]} 25. Bxd4 {[%clk
0:02:30]} 25... Nb3 {[%clk 0:01:55]} 26. Rc3 {[%clk 0:02:22.9]} 26... Nxa5
{[%clk 0:01:53.1]} 27. Rdc1 {[%clk 0:02:24.1]} 27... Ra8 {[%clk 0:01:33.6]} 28.
Bb6 {[%clk 0:02:24.6]} 28... Rfc8 {[%clk 0:01:20.9]} 29. Ra3 {[%clk 0:02:20.2]}
29... Nxc4 {[%clk 0:00:56.5]} 30. Rxc4 {[%clk 0:02:19.6]} 30... Rxc4 {[%clk
0:00:54.5]} 31. Rxa8+ {[%clk 0:02:19.7]} 31... Kg7 {[%clk 0:00:56.4]} 32. Be3
{[%clk 0:02:20.7]} 32... b6 {[%clk 0:00:50.3]} 33. Rb8 {[%clk 0:02:20.8]} 1-0

[Event "*** Titled Tuesday Blitz"]
[Site "Chess.com"]
[Date "2020.02.04"]
[Round "1"]
[White "LastGladiator1"]
[Black "Andro2"]
[Result "1-0"]
[WhiteElo "2819"]
[BlackElo "2430"]
[TimeControl "180+2"]
[EndTime "9:05:53 PST"]
[Termination "LastGladiator1 won by resignation"]

1. d4 {[%clk 0:03:01.9]} 1... e6 {[%clk 0:02:59.4]} 2. Nf3 {[%clk 0:03:03.3]}
2... b6 {[%clk 0:03:00]} 3. c4 {[%clk 0:03:03.2]} 3... Bb7 {[%clk 0:03:01.4]} 4.
Nc3 {[%clk 0:03:02.3]} 4... Nf6 {[%clk 0:03:00.8]} 5. Bg5 {[%clk 0:02:59.3]}
5... Be7 {[%clk 0:03:00.9]} 6. Nd2 {[%clk 0:02:57.7]} 6... O-O {[%clk
0:02:57.9]} 7. e3 {[%clk 0:02:57.6]} 7... h6 {[%clk 0:02:51.3]} 8. Bxf6 {[%clk
0:02:56.2]} 8... Bxf6 {[%clk 0:02:52.1]} 9. Nde4 {[%clk 0:02:54.7]} 9... Be7
{[%clk 0:02:52.6]} 10. Be2 {[%clk 0:02:52.5]} 10... f5 {[%clk 0:02:44.4]} 11.
Ng3 {[%clk 0:02:50.5]} 11... Bxg2 {[%clk 0:02:44.2]} 12. Rg1 {[%clk 0:02:49.1]}
12... Bb7 {[%clk 0:02:42.9]} 13. Nh5 {[%clk 0:02:47.5]} 13... Rf7 {[%clk
0:02:41.5]} 14. Qd2 {[%clk 0:02:44.5]} 14... d6 {[%clk 0:02:39.1]} 15. Nf4
{[%clk 0:02:42.9]} 15... Qc8 {[%clk 0:02:33.2]} 16. Bh5 {[%clk 0:02:40.9]} 16...
Rf6 {[%clk 0:02:31.4]} 17. O-O-O {[%clk 0:02:41.7]} 17... Nd7 {[%clk 0:02:30.8]}
18. d5 {[%clk 0:02:42.5]} 18... Nf8 {[%clk 0:02:28.7]} 19. dxe6 {[%clk
0:02:41.8]} 19... Nxe6 {[%clk 0:02:29.3]} 20. Ncd5 {[%clk 0:02:43.2]} 20... Bd8
{[%clk 0:02:19.2]} 21. Nxf6+ {[%clk 0:02:35.1]} 21... Bxf6 {[%clk 0:02:20.1]}
22. Nd5 {[%clk 0:02:34.5]} 22... Qd8 {[%clk 0:02:06.3]} 23. Rg6 {[%clk
0:02:31.8]} 23... Nf8 {[%clk 0:01:15.1]} 24. Nxf6+ {[%clk 0:02:31]} 24... Kh8
{[%clk 0:01:16.2]} 25. Rdg1 {[%clk 0:02:19.8]} 25... Nxg6 {[%clk 0:01:16.2]} 26.
Rxg6 {[%clk 0:02:21.7]} 26... gxf6 {[%clk 0:01:04.2]} 27. e4 {[%clk 0:02:22.1]}
27... Qf8 {[%clk 0:01:04.2]} 28. Rxh6+ {[%clk 0:02:22.4]} 28... Kg7 {[%clk
0:01:05.3]} 29. Rg6+ {[%clk 0:02:23.7]} 29... Kh7 {[%clk 0:01:06.6]} 30. Qf4
{[%clk 0:02:23.1]} 30... Bxe4 {[%clk 0:00:56]} 31. Qh4 {[%clk 0:02:19.5]} 31...
Qe7 {[%clk 0:00:36.6]} 32. Rg1 {[%clk 0:02:15.5]} 1-0

[Event "*** Titled Tuesday Blitz"]
[Site "Chess.com"]
[Date "2020.02.04"]
[Round "1"]
[White "Elshan1985"]
[Black "DinaBelenkaya"]
[Result "1-0"]
[WhiteElo "2690"]
[BlackElo "2299"]
[TimeControl "180+2"]
[EndTime "9:05:57 PST"]
[Termination "Elshan1985 won on time"]

1. c4 {[%clk 0:02:59.9]} 1... c6 {[%clk 0:02:23.7]} 2. d4 {[%clk 0:02:57.4]}
2... d5 {[%clk 0:02:24.4]} 3. Nf3 {[%clk 0:02:56.6]} 3... e6 {[%clk 0:02:13.3]}
4. Bg5 {[%clk 0:02:56]} 4... Qb6 {[%clk 0:02:05]} 5. Nbd2 {[%clk 0:02:54.9]}
5... Qxb2 {[%clk 0:02:03.6]} 6. e3 {[%clk 0:02:55.5]} 6... Nd7 {[%clk
0:01:57.9]} 7. Bd3 {[%clk 0:02:53.7]} 7... Qa3 {[%clk 0:01:53]} 8. Qc2 {[%clk
0:02:51.4]} 8... Ngf6 {[%clk 0:01:49.1]} 9. O-O {[%clk 0:02:51.8]} 9... h6
{[%clk 0:01:30.7]} 10. Bf4 {[%clk 0:02:49.3]} 10... g5 {[%clk 0:01:30.2]} 11.
Bg3 {[%clk 0:02:49.9]} 11... Qe7 {[%clk 0:01:28.6]} 12. e4 {[%clk 0:02:44.9]}
12... dxe4 {[%clk 0:01:28.8]} 13. Bxe4 {[%clk 0:02:43.7]} 13... Bg7 {[%clk
0:01:25.7]} 14. Rfe1 {[%clk 0:02:44.4]} 14... O-O {[%clk 0:01:24.9]} 15. Bd3
{[%clk 0:02:45.5]} 15... b6 {[%clk 0:01:12.9]} 16. a4 {[%clk 0:02:45.9]} 16...
a5 {[%clk 0:01:09.7]} 17. Rab1 {[%clk 0:02:42.2]} 17... Bb7 {[%clk 0:01:10.3]}
18. c5 {[%clk 0:02:42.8]} 18... Nd5 {[%clk 0:01:01.9]} 19. Bd6 {[%clk
0:02:41.4]} 19... Qd8 {[%clk 0:00:56.9]} 20. Bxf8 {[%clk 0:02:42.4]} 20... Bxf8
{[%clk 0:00:56.8]} 21. Be4 {[%clk 0:02:39.8]} 21... Nb4 {[%clk 0:00:56]} 22. Qc3
{[%clk 0:02:37]} 22... bxc5 {[%clk 0:00:55.7]} 23. dxc5 {[%clk 0:02:33.8]} 23...
Bg7 {[%clk 0:00:55.5]} 24. Qe3 {[%clk 0:02:32.5]} 24... f5 {[%clk 0:00:39.5]}
25. Bd3 {[%clk 0:02:23]} 25... Nxc5 {[%clk 0:00:34]} 26. Bc4 {[%clk 0:02:24.2]}
26... Nxa4 {[%clk 0:00:09.5]} 27. Qxe6+ {[%clk 0:02:22.6]} 27... Kh8 {[%clk
0:00:10.4]} 28. Qxf5 {[%clk 0:02:21.9]} 28... Nc3 {[%clk 0:00:09.6]} 29. Ne5
{[%clk 0:02:21.6]} 1-0

[Event "*** Titled Tuesday Blitz"]
[Site "Chess.com"]
[Date "2020.02.04"]
[Round "1"]
[White "Korchmar_Vasiliy"]
[Black "2nd_life"]
[Result "1-0"]
[WhiteElo "2824"]
[BlackElo "2432"]
[TimeControl "180+2"]
[EndTime "9:06:03 PST"]
[Termination "Korchmar_Vasiliy won by resignation"]

1. d4 {[%clk 0:02:58.6]} 1... Nf6 {[%clk 0:03:00.4]} 2. c4 {[%clk 0:02:58.8]}
2... e6 {[%clk 0:03:01.7]} 3. g3 {[%clk 0:02:59.1]} 3... c5 {[%clk 0:03:01.7]}
4. d5 {[%clk 0:03:00]} 4... exd5 {[%clk 0:03:01.6]} 5. cxd5 {[%clk 0:03:01.9]}
5... d6 {[%clk 0:03:03.1]} 6. Nc3 {[%clk 0:03:03.3]} 6... g6 {[%clk 0:03:00]} 7.
Bg2 {[%clk 0:03:04.2]} 7... Bg7 {[%clk 0:02:59.2]} 8. Nf3 {[%clk 0:03:05.3]}
8... O-O {[%clk 0:02:59.7]} 9. O-O {[%clk 0:03:07.2]} 9... Re8 {[%clk
0:03:00.7]} 10. Bf4 {[%clk 0:03:07.6]} 10... Ne4 {[%clk 0:03:01.1]} 11. Nxe4
{[%clk 0:03:08.2]} 11... Rxe4 {[%clk 0:03:03]} 12. Nd2 {[%clk 0:03:09.7]} 12...
Rxf4 {[%clk 0:03:02.9]} 13. gxf4 {[%clk 0:03:11.6]} 13... Bxb2 {[%clk 0:03:04]}
14. Rb1 {[%clk 0:03:12.6]} 14... Bg7 {[%clk 0:03:04.7]} 15. e4 {[%clk
0:03:14.5]} 15... Nd7 {[%clk 0:03:03.2]} 16. Re1 {[%clk 0:03:08.8]} 16... Qh4
{[%clk 0:02:42]} 17. Qf3 {[%clk 0:03:08.4]} 17... Bh6 {[%clk 0:02:34.7]} 18. Qg3
{[%clk 0:03:07.6]} 18... Qxf4 {[%clk 0:02:29.8]} 19. Nc4 {[%clk 0:03:08.9]}
19... Qxg3 {[%clk 0:02:06.1]} 20. fxg3 {[%clk 0:03:01.4]} 20... Bf8 {[%clk
0:02:07.4]} 21. e5 {[%clk 0:03:02.1]} 21... dxe5 {[%clk 0:01:52]} 22. d6 {[%clk
0:02:59.5]} 22... f6 {[%clk 0:01:46.8]} 23. Bxb7 {[%clk 0:02:56.6]} 23... Bxb7
{[%clk 0:00:55.7]} 24. Rxb7 {[%clk 0:02:58.5]} 24... Nb6 {[%clk 0:00:57.1]} 25.
Nxb6 {[%clk 0:02:46.4]} 25... axb6 {[%clk 0:00:58.1]} 26. Rd1 {[%clk 0:02:48.3]}
26... Rd8 {[%clk 0:00:52]} 27. Rxb6 {[%clk 0:02:43.2]} 27... Kf7 {[%clk
0:00:49.2]} 28. a4 {[%clk 0:02:29.2]} 28... Ke8 {[%clk 0:00:32.7]} 29. a5 {[%clk
0:02:20]} 29... Kd7 {[%clk 0:00:29.1]} 30. a6 {[%clk 0:02:13.5]} 30... Ra8
{[%clk 0:00:29.4]} 31. Rb7+ {[%clk 0:02:12.3]} 31... Kc6 {[%clk 0:00:28.2]} 32.
Rf7 {[%clk 0:02:11.2]} 32... f5 {[%clk 0:00:24.6]} 33. d7 {[%clk 0:02:08.3]} 1-0

[Event "*** Titled Tuesday Blitz"]
[Site "Chess.com"]
[Date "2020.02.04"]
[Round "1"]
[White "Rud_Makarian"]
[Black "cottage_cheese"]
[Result "1-0"]
[WhiteElo "2607"]
[BlackElo "2128"]
[TimeControl "180+2"]
[EndTime "9:06:07 PST"]
[Termination "Rud_Makarian won by checkmate"]

1. Nf3 {[%clk 0:02:53.4]} 1... c5 {[%clk 0:02:59.1]} 2. g3 {[%clk 0:02:52.3]}
2... Nc6 {[%clk 0:02:58.5]} 3. Bg2 {[%clk 0:02:50.7]} 3... g6 {[%clk 0:02:59.5]}
4. O-O {[%clk 0:02:51.4]} 4... Bg7 {[%clk 0:02:59.7]} 5. c4 {[%clk 0:02:53]}
5... d6 {[%clk 0:02:59]} 6. Nc3 {[%clk 0:02:53.8]} 6... e6 {[%clk 0:02:59.3]} 7.
e3 {[%clk 0:02:53.7]} 7... Nge7 {[%clk 0:02:59.4]} 8. d4 {[%clk 0:02:54.6]} 8...
O-O {[%clk 0:02:57.8]} 9. d5 {[%clk 0:02:55]} 9... exd5 {[%clk 0:02:41.4]} 10.
cxd5 {[%clk 0:02:55.4]} 10... Ne5 {[%clk 0:02:38.3]} 11. Nxe5 {[%clk 0:02:48.9]}
11... Bxe5 {[%clk 0:02:38.3]} 12. e4 {[%clk 0:02:50.1]} 12... f5 {[%clk
0:02:24.3]} 13. Bh6 {[%clk 0:02:49.4]} 13... Rf7 {[%clk 0:02:16.8]} 14. Qd2
{[%clk 0:02:38.3]} 14... Bd7 {[%clk 0:01:57]} 15. Kh1 {[%clk 0:02:37.7]} 15...
Qa5 {[%clk 0:01:06.4]} 16. f4 {[%clk 0:02:33.2]} 16... Bd4 {[%clk 0:00:52.3]}
17. e5 {[%clk 0:02:28]} 17... dxe5 {[%clk 0:00:50.8]} 18. fxe5 {[%clk
0:02:29.9]} 18... Bxe5 {[%clk 0:00:40.2]} 19. d6 {[%clk 0:02:28.8]} 19... Nc8
{[%clk 0:00:29]} 20. Bd5 {[%clk 0:02:26.2]} 20... Bc6 {[%clk 0:00:28.5]} 21. d7
{[%clk 0:02:16.3]} 21... Nd6 {[%clk 0:00:27.3]} 22. Rae1 {[%clk 0:02:07.2]}
22... Bxc3 {[%clk 0:00:19.1]} 23. bxc3 {[%clk 0:02:03.7]} 23... Bxd5+ {[%clk
0:00:18.6]} 24. Qxd5 {[%clk 0:02:03.6]} 24... Qc7 {[%clk 0:00:16.7]} 25. Re7
{[%clk 0:01:59]} 25... Rd8 {[%clk 0:00:14.7]} 26. Rfe1 {[%clk 0:01:50.7]} 26...
Rxd7 {[%clk 0:00:13.6]} 27. Qxf7+ {[%clk 0:01:49]} 27... Nxf7 {[%clk 0:00:10.3]}
28. Re8# {[%clk 0:01:50.9]} 1-0

[Event "*** Titled Tuesday Blitz"]
[Site "Chess.com"]
[Date "2020.02.04"]
[Round "1"]
[White "Chimpinha"]
[Black "GMKrikor"]
[Result "0-1"]
[WhiteElo "2455"]
[BlackElo "2852"]
[TimeControl "180+2"]
[EndTime "9:06:19 PST"]
[Termination "GMKrikor won by resignation"]

1. d4 {[%clk 0:03:01.3]} 1... Nf6 {[%clk 0:02:57.7]} 2. c4 {[%clk 0:03:00.6]}
2... e6 {[%clk 0:02:48.4]} 3. Nc3 {[%clk 0:03:01.2]} 3... Bb4 {[%clk 0:02:47.8]}
4. Nf3 {[%clk 0:02:59.4]} 4... d5 {[%clk 0:02:39.7]} 5. cxd5 {[%clk 0:02:53.5]}
5... exd5 {[%clk 0:02:39.8]} 6. Bg5 {[%clk 0:02:50.9]} 6... h6 {[%clk
0:02:41.2]} 7. Bxf6 {[%clk 0:02:41.1]} 7... Qxf6 {[%clk 0:02:41.6]} 8. Qa4+
{[%clk 0:02:38.8]} 8... Nc6 {[%clk 0:02:42.6]} 9. e3 {[%clk 0:02:35.1]} 9... O-O
{[%clk 0:02:43.5]} 10. Be2 {[%clk 0:02:28.6]} 10... Be6 {[%clk 0:02:43.9]} 11.
O-O {[%clk 0:02:25.5]} 11... a6 {[%clk 0:02:44.7]} 12. Rac1 {[%clk 0:02:14.7]}
12... Bd6 {[%clk 0:02:44.1]} 13. e4 {[%clk 0:01:58.9]} 13... dxe4 {[%clk
0:02:36.4]} 14. Nxe4 {[%clk 0:01:56.9]} 14... Qf4 {[%clk 0:02:33.5]} 15. Nxd6
{[%clk 0:01:46.7]} 15... Qxd6 {[%clk 0:02:35.4]} 16. Rfd1 {[%clk 0:01:20.6]}
16... Bd5 {[%clk 0:02:31.2]} 17. a3 {[%clk 0:00:48.9]} 17... Rfe8 {[%clk
0:02:31.4]} 18. Rd2 {[%clk 0:00:38.4]} 18... Rad8 {[%clk 0:01:55.5]} 19. b4
{[%clk 0:00:38.5]} 19... Qf4 {[%clk 0:01:45.3]} 20. Qd1 {[%clk 0:00:17.7]} 20...
Bxf3 {[%clk 0:01:29.6]} 21. Bxf3 {[%clk 0:00:18.4]} 21... Nxd4 {[%clk
0:01:31.3]} 22. Rd3 {[%clk 0:00:09.2]} 22... Nxf3+ {[%clk 0:01:27.8]} 0-1